[Event "Early-Titled-Tuesday-Blitz-March-05-2024"]
[Site "Chess.com"]
[Date "2024.03.05"]
[Round "3"]
[White "1mbl4"]
[Black "Cambek64"]
[Result "1/2-1/2"]
[WhiteElo "2600"]
[BlackElo "2442"]
[TimeControl "180+1"]
[EndTime "8:32:41 PST"]
[Termination "Game drawn - insufficient material"]

1. b3 {[%clk 0:03:00.9]} 1... b6 {[%clk 0:02:56.9]} 2. Bb2 {[%clk 0:03:00.7]}
2... Bb7 {[%clk 0:02:55.4]} 3. Nf3 {[%clk 0:03:01.2]} 3... Nf6 {[%clk
0:02:54.4]} 4. g3 {[%clk 0:03:01.4]} 4... g6 {[%clk 0:02:53.7]} 5. Bg2 {[%clk
0:02:59.5]} 5... Bg7 {[%clk 0:02:53.5]} 6. O-O {[%clk 0:03:00.2]} 6... O-O
{[%clk 0:02:53.2]} 7. c4 {[%clk 0:02:59.3]} 7... c5 {[%clk 0:02:52.8]} 8. d3
{[%clk 0:02:59.2]} 8... d6 {[%clk 0:02:52.8]} 9. Nbd2 {[%clk 0:02:59.2]} 9...
Nbd7 {[%clk 0:02:52.6]} 10. Qc2 {[%clk 0:02:56.4]} 10... Qc7 {[%clk 0:02:51.4]}
11. d4 {[%clk 0:02:55.2]} 11... cxd4 {[%clk 0:02:49.6]} 12. Nxd4 {[%clk
0:02:56.1]} 12... Bxg2 {[%clk 0:02:48.9]} 13. Kxg2 {[%clk 0:02:57]} 13... a6
{[%clk 0:02:45.7]} 14. Rac1 {[%clk 0:02:54.2]} 14... Rfc8 {[%clk 0:02:43.9]} 15.
Qb1 {[%clk 0:02:43.7]} 15... Qb7+ {[%clk 0:02:42.8]} 16. e4 {[%clk 0:02:43.9]}
16... b5 {[%clk 0:02:42.2]} 17. cxb5 {[%clk 0:02:44.3]} 17... axb5 {[%clk
0:02:41]} 18. f3 {[%clk 0:02:41.4]} 18... Nc5 {[%clk 0:02:31.5]} 19. Rfd1 {[%clk
0:02:30.9]} 19... d5 {[%clk 0:02:27.8]} 20. e5 {[%clk 0:02:18]} 20... Nfd7
{[%clk 0:02:25]} 21. f4 {[%clk 0:02:18.1]} 21... e6 {[%clk 0:02:17]} 22. N4f3
{[%clk 0:01:51.8]} 22... b4 {[%clk 0:02:12.2]} 23. Bd4 {[%clk 0:01:48.7]} 23...
Qa6 {[%clk 0:02:04.4]} 24. Rc2 {[%clk 0:01:33.4]} 24... Qe2+ {[%clk 0:02:02.3]}
25. Kg1 {[%clk 0:01:29.4]} 25... Nd3 {[%clk 0:01:41.2]} 26. Ne1 {[%clk
0:00:54.2]} 26... Rxc2 {[%clk 0:01:10.1]} 27. Nxc2 {[%clk 0:00:51.7]} 27... f6
{[%clk 0:00:43.3]} 28. exf6 {[%clk 0:00:42.9]} 28... Bxf6 {[%clk 0:00:36.2]} 29.
Nf1 {[%clk 0:00:30.1]} 29... Bxd4+ {[%clk 0:00:27.9]} 30. Nxd4 {[%clk 0:00:31]}
30... Qf2+ {[%clk 0:00:27.7]} 31. Kh1 {[%clk 0:00:30.9]} 31... Qxd4 {[%clk
0:00:26.7]} 32. Rxd3 {[%clk 0:00:29.8]} 32... Qe4+ {[%clk 0:00:26.6]} 33. Kg1
{[%clk 0:00:30.1]} 33... Rxa2 {[%clk 0:00:26.5]} 34. Qxa2 {[%clk 0:00:23]} 34...
Qxd3 {[%clk 0:00:26.1]} 35. Qa8+ {[%clk 0:00:22.7]} 35... Nf8 {[%clk 0:00:25.5]}
36. Qa4 {[%clk 0:00:18.1]} 36... Qc3 {[%clk 0:00:24.6]} 37. Kf2 {[%clk
0:00:16.9]} 37... d4 {[%clk 0:00:25.2]} 38. Qa2 {[%clk 0:00:15.2]} 38... h5
{[%clk 0:00:23.2]} 39. Nd2 {[%clk 0:00:15.1]} 39... Qe3+ {[%clk 0:00:22.4]} 40.
Kf1 {[%clk 0:00:15.4]} 40... d3 {[%clk 0:00:22.3]} 41. Qb2 {[%clk 0:00:15.3]}
41... Qe2+ {[%clk 0:00:21.6]} 42. Kg1 {[%clk 0:00:15.6]} 42... h4 {[%clk
0:00:21]} 43. gxh4 {[%clk 0:00:15.2]} 43... Qg4+ {[%clk 0:00:20.5]} 44. Kh1
{[%clk 0:00:14.1]} 44... Qxf4 {[%clk 0:00:20.6]} 45. Qc1 {[%clk 0:00:14.2]}
45... Qxh4 {[%clk 0:00:19.7]} 46. Qf1 {[%clk 0:00:13.4]} 46... Qg5 {[%clk
0:00:18]} 47. Qxd3 {[%clk 0:00:13]} 47... Qd5+ {[%clk 0:00:15.9]} 48. Qxd5
{[%clk 0:00:13.3]} 48... exd5 {[%clk 0:00:15.9]} 49. Nf3 {[%clk 0:00:13.1]}
49... Ne6 {[%clk 0:00:16.1]} 50. Ne5 {[%clk 0:00:13.5]} 50... Nc5 {[%clk
0:00:14.8]} 51. Nc6 {[%clk 0:00:13.3]} 51... Na6 {[%clk 0:00:14.3]} 52. Ne7+
{[%clk 0:00:13.3]} 52... Kf7 {[%clk 0:00:14.9]} 53. Nxd5 {[%clk 0:00:14.2]}
53... Ke6 {[%clk 0:00:14.9]} 54. Nf4+ {[%clk 0:00:11.1]} 54... Kf5 {[%clk
0:00:15.2]} 55. Ne2 {[%clk 0:00:11.8]} 55... Ke4 {[%clk 0:00:15.5]} 56. Kg2
{[%clk 0:00:12.1]} 56... g5 {[%clk 0:00:14.1]} 57. Kg3 {[%clk 0:00:11.3]} 57...
Kd3 {[%clk 0:00:14.7]} 58. Kf3 {[%clk 0:00:10.8]} 58... Nc5 {[%clk 0:00:13.3]}
59. Nc1+ {[%clk 0:00:06.3]} 59... Kc2 {[%clk 0:00:10.4]} 60. Na2 {[%clk
0:00:06.4]} 60... Kxb3 {[%clk 0:00:10.4]} 61. Nxb4 {[%clk 0:00:06.8]} 61... Kxb4
{[%clk 0:00:10.1]} 62. Kg4 {[%clk 0:00:06.6]} 62... Ne6 {[%clk 0:00:09]} 63. h4
{[%clk 0:00:06.8]} 63... gxh4 {[%clk 0:00:07.6]} 64. Kxh4 {[%clk 0:00:07.7]}
1/2-1/2

[Event "Early-Titled-Tuesday-Blitz-March-05-2024"]
[Site "Chess.com"]
[Date "2024.03.05"]
[Round "3"]
[White "tandaleo"]
[Black "ChessRespected"]
[Result "1-0"]
[WhiteElo "2469"]
[BlackElo "2607"]
[TimeControl "180+1"]
[EndTime "8:32:42 PST"]
[Termination "tandaleo won by checkmate"]

1. d4 {[%clk 0:03:00.3]} 1... d5 {[%clk 0:03:00.1]} 2. Bf4 {[%clk 0:03:00.4]}
2... Nf6 {[%clk 0:02:59.4]} 3. e3 {[%clk 0:03:00]} 3... c5 {[%clk 0:02:59.7]} 4.
Nf3 {[%clk 0:02:57.4]} 4... Nc6 {[%clk 0:02:59.2]} 5. Nbd2 {[%clk 0:02:47.1]}
5... g6 {[%clk 0:02:51.7]} 6. c3 {[%clk 0:02:37.6]} 6... Nh5 {[%clk 0:02:51]} 7.
Be5 {[%clk 0:02:35.5]} 7... f6 {[%clk 0:02:48.6]} 8. Bg3 {[%clk 0:02:35.5]} 8...
cxd4 {[%clk 0:02:46.6]} 9. exd4 {[%clk 0:02:35.2]} 9... Nxg3 {[%clk 0:02:46]}
10. hxg3 {[%clk 0:02:35.3]} 10... Bg7 {[%clk 0:02:46.2]} 11. Bd3 {[%clk
0:02:35]} 11... O-O {[%clk 0:02:46]} 12. Qc2 {[%clk 0:01:47.2]} 12... e5 {[%clk
0:02:42.4]} 13. Be2 {[%clk 0:01:39]} 13... e4 {[%clk 0:02:40.9]} 14. Nh4 {[%clk
0:01:38.4]} 14... f5 {[%clk 0:02:40.5]} 15. f4 {[%clk 0:01:11]} 15... g5 {[%clk
0:02:32.9]} 16. fxg5 {[%clk 0:01:10.7]} 16... Qxg5 {[%clk 0:02:33.4]} 17. O-O-O
{[%clk 0:01:07.1]} 17... Be6 {[%clk 0:02:24.3]} 18. Kb1 {[%clk 0:01:03.9]} 18...
Rac8 {[%clk 0:02:23.3]} 19. Qb3 {[%clk 0:01:02.4]} 19... Rf7 {[%clk 0:02:16.6]}
20. g4 {[%clk 0:00:55]} 20... fxg4 {[%clk 0:02:01]} 21. Nxe4 {[%clk 0:00:55]}
21... Qe3 {[%clk 0:01:49.1]} 22. Nc5 {[%clk 0:00:54.7]} 22... Qxe2 {[%clk
0:01:43.3]} 23. Rde1 {[%clk 0:00:54.8]} 23... Qc4 {[%clk 0:01:24.8]} 24. Qxc4
{[%clk 0:00:54.5]} 24... dxc4 {[%clk 0:01:25.7]} 25. Nxe6 {[%clk 0:00:52.8]}
25... Re8 {[%clk 0:01:16.6]} 26. Ng5 {[%clk 0:00:23.3]} 26... Rxe1+ {[%clk
0:01:17.5]} 27. Rxe1 {[%clk 0:00:23.4]} 27... Re7 {[%clk 0:01:14.3]} 28. Rxe7
{[%clk 0:00:19.1]} 28... Nxe7 {[%clk 0:01:15.2]} 29. Ne4 {[%clk 0:00:16.2]}
29... Kf7 {[%clk 0:01:06.3]} 30. Kc2 {[%clk 0:00:16.2]} 30... Ke6 {[%clk
0:01:06]} 31. Kd2 {[%clk 0:00:14.8]} 31... Bf6 {[%clk 0:00:57.7]} 32. Nxf6
{[%clk 0:00:12.5]} 32... Kxf6 {[%clk 0:00:55.2]} 33. g3 {[%clk 0:00:12.3]} 33...
h5 {[%clk 0:00:51.8]} 34. Ke3 {[%clk 0:00:11.1]} 34... Nd5+ {[%clk 0:00:51.7]}
35. Ke4 {[%clk 0:00:11]} 35... Ke6 {[%clk 0:00:49.6]} 36. Nf5 {[%clk 0:00:09.9]}
36... Nf6+ {[%clk 0:00:49.4]} 37. Kf4 {[%clk 0:00:10.3]} 37... Nd5+ {[%clk
0:00:43.8]} 38. Kg5 {[%clk 0:00:10.8]} 38... Nf6 {[%clk 0:00:36.1]} 39. Ng7+
{[%clk 0:00:10.2]} 39... Kf7 {[%clk 0:00:36.4]} 40. Nxh5 {[%clk 0:00:10.2]}
40... Ne4+ {[%clk 0:00:37]} 41. Kxg4 {[%clk 0:00:11]} 41... Nf2+ {[%clk
0:00:35.9]} 42. Kf5 {[%clk 0:00:08.3]} 42... Nd1 {[%clk 0:00:36.8]} 43. g4
{[%clk 0:00:08.9]} 43... Nxb2 {[%clk 0:00:36.4]} 44. Ng3 {[%clk 0:00:04.8]}
44... Nd1 {[%clk 0:00:34.3]} 45. Ne4 {[%clk 0:00:05.1]} 45... Ne3+ {[%clk
0:00:34.5]} 46. Kf4 {[%clk 0:00:04.9]} 46... Nd5+ {[%clk 0:00:32.4]} 47. Ke5
{[%clk 0:00:05.6]} 47... Ne7 {[%clk 0:00:32]} 48. Nd6+ {[%clk 0:00:05.8]} 48...
Kg6 {[%clk 0:00:30.3]} 49. Nxb7 {[%clk 0:00:06.5]} 49... Kg5 {[%clk 0:00:29.4]}
50. Nd6 {[%clk 0:00:06.2]} 50... Nc6+ {[%clk 0:00:29.1]} 51. Ke4 {[%clk
0:00:06.4]} 51... Kxg4 {[%clk 0:00:28.2]} 52. Nxc4 {[%clk 0:00:06.8]} 52... Kg5
{[%clk 0:00:26]} 53. Ne5 {[%clk 0:00:07.5]} 53... Na5 {[%clk 0:00:25.2]} 54. c4
{[%clk 0:00:07.7]} 54... Kf6 {[%clk 0:00:26]} 55. c5 {[%clk 0:00:07.1]} 55...
Ke7 {[%clk 0:00:25.2]} 56. Kd5 {[%clk 0:00:06.9]} 56... Nc6 {[%clk 0:00:02]} 57.
Nxc6+ {[%clk 0:00:07.8]} 57... Kd7 {[%clk 0:00:01.5]} 58. Nxa7 {[%clk
0:00:08.1]} 58... Kc7 {[%clk 0:00:01.3]} 59. Nb5+ {[%clk 0:00:08.2]} 59... Kb7
{[%clk 0:00:01.5]} 60. c6+ {[%clk 0:00:08.7]} 60... Ka6 {[%clk 0:00:01.8]} 61.
c7 {[%clk 0:00:08.2]} 61... Kb7 {[%clk 0:00:02.1]} 62. Kd6 {[%clk 0:00:06.7]}
62... Kc8 {[%clk 0:00:02.3]} 63. Na7+ {[%clk 0:00:07.1]} 63... Kb7 {[%clk
0:00:02.4]} 64. c8=Q+ {[%clk 0:00:07.4]} 64... Kb6 {[%clk 0:00:02.3]} 65. Qb8+
{[%clk 0:00:05.6]} 65... Ka6 {[%clk 0:00:02]} 66. a4 {[%clk 0:00:02.9]} 66...
Ka5 {[%clk 0:00:01.3]} 67. Qb5# {[%clk 0:00:03.8]} 1-0

[Event "Early-Titled-Tuesday-Blitz-March-05-2024"]
[Site "Chess.com"]
[Date "2024.03.05"]
[Round "3"]
[White "Eliwood44"]
[Black "GoltsevDmitry2000"]
[Result "1/2-1/2"]
[WhiteElo "2510"]
[BlackElo "2705"]
[TimeControl "180+1"]
[EndTime "8:32:44 PST"]
[Termination "Game drawn - insufficient material"]

1. d4 {[%clk 0:03:00.9]} 1... e6 {[%clk 0:03:00.2]} 2. c4 {[%clk 0:02:59.7]}
2... b6 {[%clk 0:03:00.2]} 3. e4 {[%clk 0:02:58.6]} 3... Bb7 {[%clk 0:02:59.4]}
4. d5 {[%clk 0:02:58.6]} 4... exd5 {[%clk 0:02:58.6]} 5. exd5 {[%clk 0:02:58.3]}
5... Nf6 {[%clk 0:02:58.6]} 6. Nf3 {[%clk 0:02:57.9]} 6... Bc5 {[%clk
0:02:58.4]} 7. Qe2+ {[%clk 0:02:55.8]} 7... Be7 {[%clk 0:02:55.7]} 8. g3 {[%clk
0:02:50.4]} 8... O-O {[%clk 0:02:55]} 9. Bg2 {[%clk 0:02:50.7]} 9... Bb4+ {[%clk
0:02:54.3]} 10. Nc3 {[%clk 0:02:49.7]} 10... Re8 {[%clk 0:02:52.7]} 11. Be3
{[%clk 0:02:49.8]} 11... Ng4 {[%clk 0:02:50]} 12. O-O {[%clk 0:02:49.4]} 12...
Bc5 {[%clk 0:02:45.1]} 13. Nd1 {[%clk 0:02:39.2]} 13... Nxe3 {[%clk 0:02:45.1]}
14. Nxe3 {[%clk 0:02:35.2]} 14... d6 {[%clk 0:02:45.4]} 15. Rae1 {[%clk
0:02:27]} 15... Nd7 {[%clk 0:02:45]} 16. Qd2 {[%clk 0:02:22]} 16... a5 {[%clk
0:02:35.3]} 17. Nc2 {[%clk 0:02:09.1]} 17... Qf6 {[%clk 0:02:24.5]} 18. b3
{[%clk 0:02:07.1]} 18... Qb2 {[%clk 0:02:13.4]} 19. Rxe8+ {[%clk 0:02:05.8]}
19... Rxe8 {[%clk 0:02:13.1]} 20. Re1 {[%clk 0:02:05.2]} 20... Rxe1+ {[%clk
0:02:08.5]} 21. Ncxe1 {[%clk 0:02:02.7]} 21... Qa1 {[%clk 0:02:04.4]} 22. Qe2
{[%clk 0:01:54.6]} 22... Kf8 {[%clk 0:01:54.1]} 23. h4 {[%clk 0:01:46.4]} 23...
Nf6 {[%clk 0:01:49.2]} 24. Bh3 {[%clk 0:01:43.1]} 24... c6 {[%clk 0:01:48.7]}
25. dxc6 {[%clk 0:01:26.4]} 25... Bxc6 {[%clk 0:01:49.6]} 26. Kh2 {[%clk
0:01:25]} 26... h6 {[%clk 0:01:39]} 27. Ng1 {[%clk 0:01:01.5]} 27... d5 {[%clk
0:01:12.9]} 28. Bg2 {[%clk 0:00:56.6]} 28... Bd7 {[%clk 0:01:12.5]} 29. Bf3
{[%clk 0:00:39]} 29... dxc4 {[%clk 0:01:05]} 30. bxc4 {[%clk 0:00:39.9]} 30...
a4 {[%clk 0:00:57.8]} 31. Nd3 {[%clk 0:00:38.3]} 31... Bd4 {[%clk 0:00:56.6]}
32. Kg2 {[%clk 0:00:32.4]} 32... Be6 {[%clk 0:00:50.9]} 33. Nf4 {[%clk
0:00:30.3]} 33... Bf5 {[%clk 0:00:44.6]} 34. g4 {[%clk 0:00:20.8]} 34... Bb1
{[%clk 0:00:40.7]} 35. g5 {[%clk 0:00:20.5]} 35... hxg5 {[%clk 0:00:33.7]} 36.
hxg5 {[%clk 0:00:21.4]} 36... Qxa2 {[%clk 0:00:21.2]} 37. gxf6 {[%clk
0:00:17.7]} 37... Qxe2 {[%clk 0:00:18.1]} 38. fxg7+ {[%clk 0:00:18.1]} 38...
Bxg7 {[%clk 0:00:17.8]} 39. Nfxe2 {[%clk 0:00:17.4]} 39... a3 {[%clk 0:00:17.8]}
40. Nc1 {[%clk 0:00:17]} 40... Bb2 {[%clk 0:00:18.3]} 41. Nge2 {[%clk
0:00:15.3]} 41... a2 {[%clk 0:00:14.1]} 42. Nxa2 {[%clk 0:00:14.9]} 42... Bxa2
{[%clk 0:00:10.6]} 43. Bd5 {[%clk 0:00:10.6]} 43... b5 {[%clk 0:00:10.9]} 44.
Nf4 {[%clk 0:00:04.8]} 44... bxc4 {[%clk 0:00:10.3]} 45. Kf3 {[%clk 0:00:04.1]}
45... Bb3 {[%clk 0:00:08]} 46. Ke2 {[%clk 0:00:02.6]} 46... Ke7 {[%clk
0:00:07.7]} 47. Ng2 {[%clk 0:00:01.7]} 47... Kd6 {[%clk 0:00:07]} 48. Ne3 {[%clk
0:00:01.9]} 48... Kc5 {[%clk 0:00:07.9]} 49. Bxf7 {[%clk 0:00:02]} 49... Kb4
{[%clk 0:00:05.5]} 50. Bxc4 {[%clk 0:00:02.1]} 50... Ba4 {[%clk 0:00:05.6]} 51.
Bd3 {[%clk 0:00:01.9]} 51... Bd4 {[%clk 0:00:05.9]} 52. f4 {[%clk 0:00:02]}
52... Kc3 {[%clk 0:00:05.8]} 53. Be4 {[%clk 0:00:01.9]} 53... Bb5+ {[%clk
0:00:04.9]} 54. Kf3 {[%clk 0:00:02.3]} 54... Bd7 {[%clk 0:00:05.8]} 55. Nd5+
{[%clk 0:00:02.9]} 55... Kd2 {[%clk 0:00:05.9]} 56. Nb4 {[%clk 0:00:02.6]} 56...
Ba4 {[%clk 0:00:06.3]} 57. Nd5 {[%clk 0:00:03.2]} 57... Bd1+ {[%clk 0:00:06.6]}
58. Kg3 {[%clk 0:00:03.4]} 58... Bg7 {[%clk 0:00:05.4]} 59. f5 {[%clk
0:00:03.8]} 59... Be5+ {[%clk 0:00:06]} 60. Kh4 {[%clk 0:00:03.2]} 60... Be2
{[%clk 0:00:04.2]} 61. Kg5 {[%clk 0:00:03.4]} 61... Bc4 {[%clk 0:00:04.7]} 62.
f6 {[%clk 0:00:03.3]} 62... Bd6 {[%clk 0:00:04.7]} 63. f7 {[%clk 0:00:03.2]}
63... Bxd5 {[%clk 0:00:04.6]} 64. Bxd5 {[%clk 0:00:04.1]} 64... Kd3 {[%clk
0:00:05.3]} 65. Kf6 {[%clk 0:00:04.6]} 65... Kd4 {[%clk 0:00:05.7]} 66. Ke6
{[%clk 0:00:05.3]} 66... Kc5 {[%clk 0:00:06.2]} 67. Bc6 {[%clk 0:00:05.9]} 67...
Kxc6 {[%clk 0:00:06]} 68. f8=Q {[%clk 0:00:06.6]} 68... Bxf8 {[%clk 0:00:06.5]}
1/2-1/2

[Event "Early-Titled-Tuesday-Blitz-March-05-2024"]
[Site "Chess.com"]
[Date "2024.03.05"]
[Round "3"]
[White "Defenstrator"]
[Black "lucasran"]
[Result "1/2-1/2"]
[WhiteElo "2439"]
[BlackElo "2596"]
[TimeControl "180+1"]
[EndTime "8:32:45 PST"]
[Termination "Game drawn by agreement"]

1. Nf3 {[%clk 0:03:00.6]} 1... Nf6 {[%clk 0:02:58]} 2. b3 {[%clk 0:03:00.3]}
2... g6 {[%clk 0:02:53.1]} 3. Bb2 {[%clk 0:03:00.3]} 3... Bg7 {[%clk 0:02:47.7]}
4. e4 {[%clk 0:02:59.5]} 4... d6 {[%clk 0:02:47.5]} 5. Bd3 {[%clk 0:02:52.2]}
5... O-O {[%clk 0:02:46.7]} 6. O-O {[%clk 0:02:52.6]} 6... b6 {[%clk 0:02:42.5]}
7. Re1 {[%clk 0:02:45.6]} 7... Bb7 {[%clk 0:02:42.3]} 8. Nc3 {[%clk 0:02:35.4]}
8... Nbd7 {[%clk 0:02:39]} 9. Rb1 {[%clk 0:02:25.9]} 9... e5 {[%clk 0:02:30.7]}
10. Bf1 {[%clk 0:02:09.7]} 10... Nc5 {[%clk 0:02:21.7]} 11. d3 {[%clk
0:02:02.9]} 11... a5 {[%clk 0:02:21.6]} 12. a3 {[%clk 0:02:01]} 12... Re8 {[%clk
0:02:08.7]} 13. b4 {[%clk 0:01:55.2]} 13... axb4 {[%clk 0:02:09.6]} 14. axb4
{[%clk 0:01:56.1]} 14... Na4 {[%clk 0:02:09.8]} 15. Nxa4 {[%clk 0:01:52.3]}
15... Rxa4 {[%clk 0:02:10.7]} 16. d4 {[%clk 0:01:37.9]} 16... Rxb4 {[%clk
0:02:10.6]} 17. c3 {[%clk 0:01:34.9]} 17... Rxb2 {[%clk 0:02:05.1]} 18. Rxb2
{[%clk 0:01:35.4]} 18... Nxe4 {[%clk 0:02:05.7]} 19. Qb3 {[%clk 0:01:23.9]}
19... Ng5 {[%clk 0:01:24.6]} 20. Nxg5 {[%clk 0:01:19.6]} 20... Qxg5 {[%clk
0:01:25.5]} 21. f3 {[%clk 0:01:14.8]} 21... Bxf3 {[%clk 0:01:07.9]} 22. Rf2
{[%clk 0:01:14.5]} 22... Bc6 {[%clk 0:00:50.9]} 23. Qxf7+ {[%clk 0:01:14]} 23...
Kh8 {[%clk 0:00:51.4]} 24. Qxc7 {[%clk 0:01:07.6]} 24... Bd5 {[%clk 0:00:37]}
25. Qxd6 {[%clk 0:00:56.1]} 25... Rd8 {[%clk 0:00:26.4]} 26. Qxb6 {[%clk
0:00:56.1]} 26... exd4 {[%clk 0:00:25.7]} 27. cxd4 {[%clk 0:00:44.8]} 27... Ba8
{[%clk 0:00:12]} 28. Kh1 {[%clk 0:00:25.2]} 28... Bxd4 {[%clk 0:00:11.1]} 29.
Re8+ {[%clk 0:00:24.4]} 29... Rxe8 {[%clk 0:00:08.6]} 30. Qxd4+ {[%clk
0:00:24.4]} 30... Qe5 {[%clk 0:00:07]} 31. Rf8+ {[%clk 0:00:18.9]} 31... Kg7
{[%clk 0:00:07.5]} 32. Qxe5+ {[%clk 0:00:17.7]} 32... Rxe5 {[%clk 0:00:08.4]}
33. Rxa8 {[%clk 0:00:17.4]} 33... Re1 {[%clk 0:00:07.4]} 34. Kg1 {[%clk
0:00:17.6]} 34... h5 {[%clk 0:00:08.1]} 35. Kf2 {[%clk 0:00:16.9]} 35... Re6
{[%clk 0:00:08.5]} 36. Bd3 {[%clk 0:00:16.7]} 36... Rf6+ {[%clk 0:00:08.9]} 37.
Ke2 {[%clk 0:00:16.3]} 37... Kh6 {[%clk 0:00:09]} 38. h4 {[%clk 0:00:14.9]}
38... Re6+ {[%clk 0:00:09.3]} 39. Kf2 {[%clk 0:00:15.1]} 39... Rf6+ {[%clk
0:00:09.8]} 40. Kg3 {[%clk 0:00:15.7]} 40... Rd6 {[%clk 0:00:10.3]} 41. Be4
{[%clk 0:00:14.3]} 41... Re6 {[%clk 0:00:10.8]} 42. Bf3 {[%clk 0:00:14.2]} 42...
Rd6 {[%clk 0:00:10.7]} 43. Ra5 {[%clk 0:00:13.1]} 43... Re6 {[%clk 0:00:10.6]}
44. Kh3 {[%clk 0:00:11.6]} 44... Rd6 {[%clk 0:00:10.7]} 45. Rg5 {[%clk
0:00:09.6]} 45... Re6 {[%clk 0:00:10.4]} 46. Bd1 {[%clk 0:00:08.7]} 46... Rb6
{[%clk 0:00:10.5]} 47. Bc2 {[%clk 0:00:08.6]} 47... Rc6 {[%clk 0:00:11]} 48. Be4
{[%clk 0:00:07.3]} 48... Re6 {[%clk 0:00:11.5]} 49. Bd5 {[%clk 0:00:07.5]} 49...
Rd6 {[%clk 0:00:12]} 50. Bf7 {[%clk 0:00:07.4]} 50... Rf6 {[%clk 0:00:12.2]} 51.
Be8 {[%clk 0:00:08.2]} 51... Re6 {[%clk 0:00:12.6]} 52. Bxg6 {[%clk 0:00:06]}
52... Rxg6 {[%clk 0:00:12.8]} 53. Rxg6+ {[%clk 0:00:06.6]} 53... Kxg6 {[%clk
0:00:13.7]} 54. Kg3 {[%clk 0:00:07.5]} 54... Kf5 {[%clk 0:00:13.7]} 55. Kf3
{[%clk 0:00:08.4]} 55... Ke5 {[%clk 0:00:14.1]} 56. Ke3 {[%clk 0:00:07.2]} 56...
Kf5 {[%clk 0:00:14.4]} 57. g3 {[%clk 0:00:07.3]} 57... Kg4 {[%clk 0:00:14.8]}
58. Kf2 {[%clk 0:00:08.2]} 58... Kf5 {[%clk 0:00:14.6]} 59. Kf3 {[%clk
0:00:09.1]} 59... Ke5 {[%clk 0:00:14.9]} 60. Ke3 {[%clk 0:00:08.8]} 60... Kf5
{[%clk 0:00:15.3]} 61. Ke2 {[%clk 0:00:09.4]} 61... Kg4 {[%clk 0:00:15.4]} 62.
Kf2 {[%clk 0:00:10.1]} 62... Kf5 {[%clk 0:00:15.9]} 63. Kg1 {[%clk 0:00:11]}
63... Kg4 {[%clk 0:00:16.2]} 64. Kh2 {[%clk 0:00:11.7]} 64... Kf5 {[%clk
0:00:16.4]} 65. Kh3 {[%clk 0:00:11.9]} 65... Ke5 {[%clk 0:00:16.9]} 66. g4
{[%clk 0:00:12.5]} 66... hxg4+ {[%clk 0:00:17.4]} 67. Kxg4 {[%clk 0:00:13.4]}
67... Kf6 {[%clk 0:00:17.8]} 1/2-1/2